bitfinex/quotes_SOLUSD_20250918
["timestamp","ask_amount","ask_price","bid_price","bid_amount"]
[1758212643453,50.88810395,248.77,248.76,0.03]
[1758212643949,51.55810395,248.77,248.76,0.03]
[1758212644134,50.88810395,248.77,248.76,0.03]
[1758212644330,0.28432314,248.73,248.72,0.2]
[1758212644528,36.64961207,248.73,248.72,0.2]
[1758212644938,44.89084665,248.73,248.72,0.2]
[1758212645241,48.9112704,248.73,248.72,0.2]
[1758212645437,17.5712704,248.73,248.72,0.2]
[1758212645649,48.9112704,248.73,248.72,0.2]
[1758212646175,31.16686441,248.73,248.72,1e-08]
[1758212646356,62.50686441,248.73,248.72,1e-08]
[1758212646752,60.83677134,248.73,248.72,1e-08]
[1758212646945,62.50686441,248.73,248.72,1e-08]
[1758212647149,31.16686441,248.73,248.72,1e-08]
[1758212647654,17.5712704,248.73,248.72,1e-08]
[1758212647854,48.9512704,248.73,248.72,1e-08]
[1758212648246,17.5712704,248.73,248.72,1e-08]
[1758212648443,48.9512704,248.73,248.72,1e-08]
[1758212648644,47.28117733,248.73,248.72,1e-08]
[1758212648870,13.87991715,248.72,248.71,1e-08]
[1758212649035,13.87991715,248.72,248.56,0.72]
[1758212649036,13.59559401,248.68,248.56,0.72]
[1758212649238,1.67009307,248.62,248.56,0.72]
[1758212649440,33.09009307,248.62,248.56,0.72]
[1758212649760,39.8086589,248.62,248.56,0.72]
[1758212649960,37.46856583,248.62,248.56,0.72]
[1758212650167,39.1386589,248.62,248.56,0.72]
[1758212650367,37.46856583,248.62,248.54,4.02343475]
[1758212650548,39.1386589,248.62,248.57,0.72]
[1758212650864,40.14912786,248.62,248.57,0.72]
[1758212651181,8.72912786,248.62,248.57,0.72]
[1758212651361,39.1386589,248.62,248.57,0.72]
[1758212651738,39.1386589,248.62,248.53,4.02351849]
[1758212651739,40.08998607,248.62,248.53,4.02351849]
[1758212651953,40.08998607,248.62,248.51,0.1]
[1758212651954,43.43823947,248.62,248.56,0.72]
[1758212652444,43.43823947,248.62,248.54,0.72]
[1758212652842,57.33815662,248.62,248.54,0.72]
[1758212654742,54.71673638,248.62,248.54,0.72]
[1758212654946,57.33815662,248.62,248.54,0.72]
[1758212655280,57.31815662,248.62,248.54,0.72]
[1758212655779,54.69673638,248.62,248.54,0.72]
[1758212656073,57.31815662,248.62,248.54,0.72]
[1758212656374,61.34035917,248.62,248.61,0.13]
[1758212656873,58.71893893,248.62,248.61,0.13]
[1758212657364,61.34035917,248.62,248.61,0.13]
[1758212657571,61.36035917,248.62,248.61,0.13]
[1758212658166,61.34035917,248.62,248.61,0.13]
[1758212658755,58.71893893,248.62,248.61,0.13]
[1758212658960,61.34035917,248.62,248.61,0.13]
[1758212659870,58.71893893,248.62,248.61,0.13]
[1758212660174,61.34035917,248.62,248.61,0.13]
[1758212660347,58.66210577,248.62,248.61,0.13]
[1758212661060,56.04068553,248.62,248.61,0.13]
[1758212661255,58.66210577,248.62,248.61,0.13]
[1758212661975,56.04068553,248.62,248.61,0.13]
[1758212662272,58.66210577,248.62,248.61,0.13]
[1758212663358,44.07218862,248.62,248.61,0.13]
[1758212663684,44.05218862,248.62,248.61,0.13]
[1758212664058,44.72218862,248.62,248.61,0.13]
[1758212664956,45.00651176,248.62,248.61,0.13]
[1758212665660,13.64651176,248.62,248.61,0.13]
[1758212665977,45.00651176,248.62,248.61,0.13]
[1758212666973,58.60210577,248.62,248.61,0.13]
[1758212667383,0.28432314,248.61,248.58,0.03]
[1758212667565,2.62142024,248.59,248.58,0.03]
[1758212667876,3.29142024,248.59,248.58,0.03]
[1758212668068,8.83761828,248.59,248.58,0.03]
[1758212668647,12.86030624,248.59,248.58,0.03]
[1758212669874,13.14462938,248.59,248.58,0.03]
[1758212670593,32.02433111,248.59,248.58,0.03]
[1758212671158,39.87991715,248.57,248.56,0.03]
[1758212671380,50.50402487,248.57,248.56,0.03]
[1758212671583,56.67422291,248.57,248.56,0.03]
[1758212672358,59.9554015,248.57,248.56,0.03]
[1758212672761,63.97841312,248.57,248.56,0.03]
[1758212673184,63.99841312,248.57,248.56,0.03]
[1758212674065,74.05594218,248.57,248.51,0.1]
[1758212674271,2.90574338,248.52,248.51,0.1]
[1758212674574,36.90843086,248.52,248.51,0.1]
[1758212674773,46.40545492,248.52,248.51,0.1]
[1758212675591,62.62246917,248.52,248.51,0.1]
[1758212676665,62.62246917,248.52,248.48,0.7]
[1758212676666,26.0,248.49,248.48,0.7]
[1758212676876,26.0,248.49,248.41,0.1]
[1758212676877,13.59559401,248.48,248.41,0.1]
[1758212677174,2.66268748,248.47,248.41,4.12551636]
[1758212677373,31.36,248.46,248.41,0.1]
[1758212677594,33.98142024,248.46,248.41,0.1]
[1758212677788,2.62142024,248.44,248.41,0.1]
[1758212677992,31.36,248.43,248.41,0.1]
[1758212678318,38.89861408,248.43,248.41,0.1]
[1758212678498,4.91719384,248.42,248.41,0.1]
[1758212678879,36.27719384,248.42,248.41,0.1]
[1758212680215,41.57641306,248.42,248.41,0.1]
[1758212681600,24.09633021,248.42,248.41,0.1]
[1758212681779,55.47633021,248.42,248.41,0.1]
[1758212682879,62.86817393,248.42,248.41,0.1]
[1758212683683,31.48817393,248.42,248.41,0.1]
[1758212683885,0.28432314,248.38,248.36,0.1]
[1758212684099,36.67921922,248.37,248.36,0.1]
[1758212684398,40.61305586,248.37,248.36,0.1]
[1758212685184,6.61163562,248.37,248.36,0.1]
[1758212685388,38.01163562,248.37,248.36,0.1]
[1758212685589,40.63305586,248.37,248.36,0.1]
[1758212686200,9.23305586,248.37,248.36,0.1]
[1758212686607,40.63305586,248.37,248.36,0.1]
[1758212687011,9.23305586,248.37,248.36,0.1]
[1758212687488,38.01163562,248.37,248.36,0.1]
[1758212687690,40.63305586,248.37,248.36,0.1]
[1758212688098,38.01163562,248.37,248.36,0.1]
[1758212688419,40.63305586,248.37,248.36,0.1]
[1758212688803,38.01163562,248.37,248.36,0.1]
[1758212689809,6.61163562,248.37,248.36,4.12641327]
[1758212689994,3.93383664,248.37,248.36,4.12641327]
[1758212691910,3.35473063,248.5,248.36,17.72200728]
[1758212692222,2.68712587,248.49,248.39,26.0]
[1758212692422,2.68712587,248.48,248.39,26.0]
[1758212692631,2.68712587,248.49,248.39,26.0]
[1758212692816,2.68712587,248.48,248.39,26.0]
[1758212693023,2.68712587,248.49,248.4,14.09017712]
[1758212693203,2.68712587,248.48,248.4,14.09017712]
[1758212693402,0.06,248.41,248.4,14.09017712]
[1758212695503,0.06,248.41,248.4,4.02576489]
[1758212696831,0.06,248.41,248.38,4.02594624]
[1758212699700,0.06,248.41,248.37,14.09177375]
[1758212700609,0.06,248.41,248.37,4.02625115]
[1758212701719,0.06,248.41,248.4,26.0]
[1758212702422,0.06,248.41,248.4,57.66]
[1758212703316,0.06,248.41,248.4,61.68576489]
[1758212704828,0.06,248.41,248.4,4.02576489]
[1758212705012,0.06,248.41,248.4,35.66576489]
[1758212705408,0.06,248.41,248.4,4.02576489]
[1758212707040,0.06,248.41,248.38,14.09131169]
[1758212707332,0.06,248.41,248.4,26.0]
[1758212707834,0.06,248.41,248.4,57.76]
[1758212708837,0.06,248.41,248.4,61.78576489]
[1758212709232,0.06,248.41,248.4,75.3813589]
[1758212709732,9.30860042,248.47,248.4,85.44577113]
[1758212710547,9.30860042,248.47,248.41,13.59559401]
[1758212710731,9.30860042,248.47,248.44,26.0]
[1758212710939,9.30860042,248.47,248.45,35.76495471]
[1758212711609,9.30860042,248.47,248.45,16.10492411]
[1758212711809,9.30860042,248.47,248.45,47.82492411]
[1758212712010,9.30860042,248.47,248.45,4.02495471]
[1758212712231,9.30860042,248.47,248.42,13.3340412]
[1758212712433,9.30860042,248.47,248.42,35.74544078]
[1758212712910,9.30860042,248.47,248.41,41.76385845]
[1758212713513,9.36860042,248.47,248.41,41.76385845]
[1758212713922,9.36860042,248.47,248.41,45.78946128]
[1758212714629,9.36860042,248.47,248.41,4.02560283]
[1758212715436,9.36860042,248.47,248.41,14.08960991]
[1758212715926,9.36860042,248.47,248.41,45.76960991]
[1758212716244,0.06,248.47,248.41,45.76960991]
[1758212716823,0.06,248.47,248.41,14.08960991]
[1758212717024,0.06,248.47,248.41,4.02560283]
[1758212717426,1.67928518,248.46,248.41,4.02560283]
[1758212717714,1.67928518,248.45,248.39,4.02582453]
[1758212717913,5.7042826,248.45,248.38,4.02608905]
[1758212718249,4.02499742,248.45,248.38,2.70102213]
[1758212718418,1.67928518,248.43,248.38,2.70102213]
[1758212718755,1.67928518,248.42,248.37,0.03]
[1758212718933,1.67928518,248.41,248.37,0.03]
[1758212719112,1.67928518,248.43,248.37,4.05623815]
[1758212719313,4.38030731,248.44,248.37,4.05623815]
[1758212720526,8.40543426,248.44,248.37,4.05623815]
[1758212720918,4.38030731,248.44,248.37,4.05623815]
[1758212721446,8.40542554,248.44,248.37,4.05623815]
[1758212722942,6.72614036,248.44,248.37,4.05623815]
[1758212723257,1.67928518,248.43,248.37,4.05623815]
[1758212723942,2.70102213,248.44,248.37,4.05623815]
[1758212724421,26.0,248.45,248.37,4.05623815]
[1758212725027,5.70426428,248.45,248.37,14.12186604]
[1758212725543,8.40575213,248.45,248.37,14.12186604]
[1758212725844,4.38077303,248.45,248.37,14.12186604]
[1758212726144,5.7639322,248.47,248.37,14.12186604]
[1758212726349,1.67928518,248.46,248.37,14.12186604]
[1758212726657,1.67928518,248.45,248.37,14.12186604]
[1758212727923,0.06,248.47,248.37,14.12186604]
[1758212728140,1.67928518,248.46,248.37,14.12186604]
[1758212728339,4.38102382,248.46,248.37,14.12186604]
[1758212728542,1.67928518,248.46,248.37,14.12186604]
[1758212729243,8.40590123,248.46,248.37,14.12186604]
[1758212729446,1.67928518,248.45,248.37,4.05623815]
[1758212730244,4.38102382,248.45,248.37,4.05623815]
[1758212730634,2.70173864,248.45,248.37,4.05623815]
[1758212730947,8.40590123,248.46,248.37,4.05623815]
[1758212731130,6.72661605,248.46,248.37,14.12186604]
[1758212731334,2.70173864,248.45,248.37,14.12186604]
[1758212731636,8.40597961,248.45,248.37,4.05623815]
[1758212731832,2.70173864,248.44,248.37,4.05623815]
[1758212732152,4.02495579,248.45,248.37,4.05623815]
[1758212732352,2.70173864,248.44,248.37,4.05623815]
[1758212732953,6.72694448,248.44,248.37,4.05623815]
[1758212733130,4.02520584,248.44,248.37,4.05623815]
[1758212733323,2.70173864,248.43,248.37,4.05623815]
[1758212734454,2.70173864,248.42,248.37,0.03]
[1758212735258,1.67928518,248.44,248.37,0.03]
[1758212735476,2.70766621,248.43,248.37,0.03]
[1758212735759,2.70766621,248.42,248.37,0.03]
[1758212735950,1.67928518,248.44,248.37,0.03]
[1758212736151,2.70766579,248.43,248.37,0.03]
[1758212736448,1.67928518,248.44,248.37,0.03]
[1758212736449,2.70766579,248.42,248.37,0.03]
[1758212736648,4.02527875,248.43,248.37,0.03]
[1758212736828,2.70769494,248.42,248.37,0.03]
[1758212737029,0.68,248.42,248.37,0.03]
[1758212737377,0.68,248.41,248.37,0.03]
[1758212737729,0.68,248.4,248.37,0.03]
[1758212738850,0.68,248.42,248.37,0.03]
[1758212739059,0.68,248.4,248.37,0.03]
[1758212739847,4.02531485,248.43,248.37,0.03]
[1758212740059,0.68,248.41,248.37,0.03]
[1758212740549,0.68,248.4,248.37,0.03]
[1758212740933,0.68,248.39,248.37,0.03]
[1758212741133,3.38756326,248.41,248.37,0.03]
[1758212741363,0.68,248.41,248.37,0.03]
[1758212741536,3.38756326,248.41,248.37,0.03]
[1758212741736,0.68,248.4,248.37,0.03]
[1758212742662,0.68,248.39,248.37,0.03]
[1758212743160,0.68,248.41,248.37,0.03]
[1758212743637,2.70756326,248.42,248.37,0.03]
[1758212743638,0.68,248.4,248.37,0.03]
[1758212744955,0.68,248.39,248.37,0.03]
[1758212745639,6.73301214,248.42,248.37,0.03]
[1758212745856,0.68,248.41,248.37,0.03]
[1758212746739,4.02544888,248.42,248.37,0.03]
[1758212746943,0.68,248.41,248.37,0.03]
[1758212747557,55.15749605,248.47,248.37,0.03]
[1758212747558,2.70756326,248.43,248.37,0.03]
[1758212747760,2.70756326,248.42,248.37,0.74]
[1758212748061,2.70756326,248.45,248.38,0.71]
[1758212749041,0.68,248.46,248.38,0.71]
[1758212749042,3.38756326,248.46,248.38,0.71]
[1758212749240,2.70756326,248.45,248.39,14.09074438]
[1758212749465,3.38756326,248.45,248.39,14.80074438]
[1758212749639,0.68,248.45,248.39,14.80074438]
[1758212750034,3.38756326,248.45,248.39,14.80074438]
[1758212750234,0.68,248.45,248.39,14.80074438]
[1758212750457,3.38756326,248.45,248.39,14.80074438]
[1758212750653,0.68,248.45,248.39,14.80074438]
[1758212750852,3.38756326,248.45,248.39,14.80074438]
[1758212751165,3.38756326,248.44,248.37,4.05625115]
[1758212751347,3.38756326,248.43,248.37,4.05625115]
[1758212751542,4.08501161,248.45,248.37,4.05625115]
[1758212751543,0.68,248.42,248.37,4.05625115]
[1758212751849,0.68,248.41,248.37,4.05625115]
[1758212752588,0.68,248.4,248.37,0.03]
[1758212753650,0.7,248.39,248.37,0.03]
[1758212754470,0.7,248.38,248.37,0.03]
[1758212754666,0.7,248.41,248.37,0.03]
[1758212755170,3.40788394,248.43,248.37,0.71]
[1758212755372,2.70788394,248.42,248.37,0.71]
[1758212755576,2.70788394,248.42,248.39,26.0]
[1758212755763,0.06,248.45,248.41,26.0]
[1758212755955,0.06,248.45,248.42,32.04]
[1758212756353,0.06,248.45,248.43,0.68]
[1758212756759,0.06,248.45,248.44,4.02511672]
[1758212757278,0.06,248.45,248.44,4.70511672]
[1758212760376,0.06,248.45,248.44,4.02511672]
[1758212760879,0.06,248.45,248.44,4.70511672]
[1758212761474,0.06,248.45,248.43,4.02527875]
[1758212761670,0.06,248.45,248.43,4.70527875]
[1758212762083,0.7,248.44,248.43,31.36]
[1758212762270,0.7,248.44,248.41,4.02560283]
[1758212762578,0.67,248.44,248.42,31.36]
[1758212762758,0.67,248.43,248.42,31.36]
[1758212762946,0.67,248.43,248.41,4.02560283]
[1758212763152,0.67,248.43,248.41,35.38560283]
[1758212764570,0.06,248.45,248.39,4.02592696]
[1758212764767,0.67,248.42,248.39,4.02592696]
[1758212764980,0.67,248.42,248.39,35.38592696]
[1758212765364,0.67,248.41,248.37,4.0561544]
[1758212765569,3.37855055,248.4,248.37,0.03]
[1758212765969,0.67,248.39,248.37,0.03]
[1758212766294,1.67928518,248.38,248.37,0.03]
[1758212766467,4.38824291,248.38,248.37,0.03]
[1758212766662,5.05824291,248.38,248.37,0.03]
[1758212767777,9.08433196,248.38,248.37,0.03]
[1758212769569,6.37537423,248.38,248.37,0.03]
[1758212769881,9.08433196,248.38,248.37,0.03]
[1758212772488,9.3686551,248.38,248.37,0.03]
[1758212772987,26.12507026,248.38,248.37,0.03]
[1758212773186,11.21895788,248.38,248.37,0.03]
[1758212773368,12.89824306,248.38,248.37,0.03]
[1758212773761,16.92433211,248.38,248.37,0.03]
[1758212774779,17.20865525,248.38,248.37,0.03]
[1758212775180,30.80424926,248.38,248.37,0.03]
[1758212775784,31.75203644,248.38,248.37,0.03]
[1758212777467,63.11203644,248.38,248.37,0.03]
[1758212778196,60.48496408,248.38,248.37,0.03]
[1758212778486,63.11203644,248.38,248.37,0.03]
[1758212779510,60.48496408,248.38,248.37,0.03]
[1758212779790,63.11203644,248.38,248.37,0.03]
[1758212780287,60.40307871,248.38,248.37,0.03]
[1758212780488,63.10486844,248.38,248.37,0.03]
[1758212781069,13.87991715,248.37,248.36,1e-08]
[1758212781264,19.20877924,248.37,248.36,1e-08]
[1758212781481,64.17543964,248.37,248.36,1e-08]
[1758212782289,32.81543964,248.37,248.36,1e-08]
[1758212782472,36.84169079,248.37,248.36,1e-08]
[1758212782672,68.20169079,248.37,248.36,1e-08]
[1758212783486,65.57461843,248.37,248.36,1e-08]
[1758212783686,68.20169079,248.37,248.36,1e-08]
[1758212784778,36.17169079,248.37,248.36,1e-08]
[1758212784985,67.53169079,248.37,248.36,1e-08]
[1758212785694,19.66470128,248.37,248.36,1e-08]
[1758212785895,18.26552249,248.37,248.36,1e-08]
[1758212786097,22.29177364,248.37,248.36,1e-08]
[1758212786986,22.96177364,248.37,248.36,1e-08]
[1758212787369,22.29177364,248.37,248.36,1e-08]
[1758212788789,22.96177364,248.37,248.36,1e-08]
[1758212789185,22.29177364,248.37,248.36,1e-08]
[1758212789498,19.66470128,248.37,248.36,1e-08]
[1758212789696,49.62552249,248.37,248.36,1e-08]
[1758212789897,44.2966604,248.37,248.36,0.66000001]
[1758212790275,12.9366604,248.37,248.36,0.66000001]
[1758212791603,12.9366604,248.37,248.36,4.68641328]
[1758212796486,0.06,248.41,248.36,14.75244645]
[1758212796709,0.06,248.41,248.37,0.66]
[1758212797012,0.06,248.41,248.38,0.66]
[1758212797377,0.06,248.41,248.36,14.09244645]
[1758212797576,0.06,248.41,248.4,4.02576489]
[1758212798913,0.06,248.41,248.4,4.68576489]
[1758212804818,0.06,248.41,248.4,30.68576489]
[1758212804998,0.06,248.41,248.4,4.02576489]
[1758212806815,0.06,248.41,248.39,4.02592696]
[1758212807604,0.06,248.41,248.38,79.7]
[1758212807800,0.71,248.4,248.38,79.7]
[1758212808108,0.06,248.41,248.38,115.08604733]
[1758212808839,0.06,248.41,248.38,4.02604733]
[1758212810411,0.06,248.41,248.38,4.68604733]
[1758212810611,0.06,248.41,248.37,31.34]
[1758212810788,0.06,248.41,248.37,32.0]
[1758212813804,0.06,248.41,248.38,4.70608905]
[1758212814132,0.06,248.41,248.38,14.77131169]
[1758212814421,0.06,248.44,248.4,39.87991715]
[1758212814621,0.06,248.44,248.42,13.59559401]
[1758212814840,0.06,248.44,248.43,13.99812188]
[1758212815334,0.06,248.44,248.43,16.28878446]
[1758212816026,0.06,248.44,248.43,51.75406321]
[1758212817720,0.06,248.44,248.43,20.31406321]
[1758212817909,0.06,248.44,248.43,51.73406321]
[1758212818227,0.06,248.44,248.43,20.31406321]
[1758212818533,0.06,248.44,248.43,51.73406321]
[1758212823045,0.06,248.44,248.43,52.01838635]
[1758212823335,1e-08,248.45,248.44,13.87991715]
[1758212823524,1e-08,248.47,248.46,26.0]
[1758212823847,1e-08,248.5,248.49,39.87991715]
[1758212824015,1e-08,248.5,248.49,71.66234783]
[1758212824203,1e-08,248.5,248.49,72.33234783]
[1758212824406,0.1,248.59,248.57,26.0]
[1758212824607,0.1,248.59,248.58,49.28276693]
[1758212824810,0.1,248.59,248.58,49.95276693]
[1758212825634,0.1,248.59,248.58,51.56239249]
[1758212826006,0.1,248.59,248.58,51.54239249]
[1758212826932,0.1,248.59,248.58,49.93276693]
[1758212827513,0.87,248.67,248.61,26.0]
[1758212827721,0.2,248.67,248.62,31.76222025]
[1758212827916,0.2,248.67,248.62,32.43222025]
[1758212828126,0.2,248.67,248.63,0.67]
[1758212828442,0.2,248.67,248.61,26.0]
[1758212828443,0.2,248.67,248.64,31.7621879]
[1758212828738,0.2,248.67,248.64,0.4021879]
[1758212829215,0.2,248.67,248.65,31.36]
[1758212829413,0.2,248.67,248.65,35.78388899]
[1758212829942,0.2,248.67,248.65,36.45388899]
[1758212830728,0.2,248.67,248.65,61.78388899]
[1758212832445,0.2,248.67,248.65,61.36171727]
[1758212833024,0.2,248.67,248.65,30.02171727]
[1758212833224,0.87,248.66,248.62,26.0]
[1758212833443,0.67,248.65,248.63,31.34]
[1758212833647,0.67,248.64,248.57,14.26559401]
[1758212833942,3.29707236,248.63,248.56,10.05793369]
[1758212834240,0.67,248.62,248.57,57.32]
[1758212834440,0.67,248.61,248.58,31.32]
[1758212834650,0.67,248.6,248.58,31.32]
[1758212834950,0.67,248.59,248.58,31.32]
[1758212835315,0.67,248.59,248.56,26.0]
[1758212835521,0.67,248.59,248.55,4.02319124]
[1758212835522,0.67,248.58,248.57,31.32]
[1758212836535,1.67744794,248.63,248.58,4.02284978]
[1758212836736,0.67,248.62,248.58,4.02284978]
[1758212837141,0.67,248.61,248.58,4.02284978]
[1758212837338,0.67,248.6,248.58,4.02284978]
[1758212837522,0.67,248.59,248.58,4.02284978]
[1758212838629,0.67,248.59,248.58,31.32]
[1758212838830,4.22171142,248.66,248.58,31.32]
[1758212839138,0.67,248.62,248.58,31.32]
[1758212839344,0.67,248.64,248.58,31.32]
[1758212841645,0.67,248.64,248.59,4.02268796]
[1758212841853,0.06,248.62,248.59,4.02268796]
[1758212842429,0.73,248.62,248.6,31.32]
[1758212843151,0.67,248.61,248.6,31.32]
[1758212843326,0.06,248.62,248.6,31.32]
[1758212843526,0.67,248.61,248.58,0.03]
[1758212843833,1.67744794,248.6,248.58,0.03]
[1758212844232,0.67,248.59,248.58,0.03]
[1758212844435,2.34744794,248.59,248.58,0.03]
[1758212844959,0.67,248.59,248.58,0.03]
[1758212848948,2.34744794,248.59,248.58,0.03]
[1758212849154,0.67,248.59,248.58,0.03]
[1758212849333,2.34744794,248.59,248.58,0.03]
[1758212849735,6.3701359,248.59,248.58,0.03]
[1758212853433,4.69268796,248.59,248.58,0.03]
[1758212859836,6.4001359,248.59,248.58,0.03]
[1758212860034,20.28005305,248.59,248.58,0.03]
[1758212860257,22.97030959,248.59,248.58,0.03]
[1758212860463,23.03030959,248.59,248.58,0.03]
[1758212861402,24.70775753,248.59,248.58,0.03]
[1758212861844,29.74010135,248.59,248.58,0.03]
[1758212862541,64.4096184,248.59,248.58,0.03]
[1758212862754,39.59559401,248.55,248.53,0.03]
[1758212863048,18.24762163,248.54,248.53,0.03]
[1758212863353,22.97111885,248.54,248.53,0.03]
[1758212863764,26.3206359,248.54,248.53,0.03]
[1758212863965,29.54239551,248.54,248.53,0.03]
[1758212864258,26.19287846,248.54,248.53,0.03]
[1758212865375,57.51287846,248.54,248.53,0.03]
[1758212865893,60.86239551,248.54,248.53,0.03]
[1758212866063,57.51287846,248.54,248.53,0.03]
[1758212869395,26.19287846,248.54,248.53,0.03]
[1758212869564,6.71375376,248.54,248.53,0.03]
[1758212869981,4.02349722,248.54,248.53,0.75]
[1758212870179,4.02349722,248.54,248.53,0.03]
[1758212870494,35.36349722,248.54,248.53,0.03]
[1758212870864,4.02349722,248.54,248.53,0.03]
[1758212871188,35.36349722,248.54,248.53,0.03]
[1758212872086,4.02349722,248.54,248.53,0.03]
[1758212872281,35.36349722,248.54,248.53,0.03]
[1758212873380,36.06349722,248.54,248.53,0.03]
[1758212874074,37.74094516,248.54,248.53,0.03]
[1758212874578,37.04094516,248.54,248.53,0.03]
[1758212874780,35.36349722,248.54,248.53,0.03]
[1758212875980,37.04094516,248.54,248.53,0.03]
[1758212876880,51.64086231,248.54,248.53,0.03]
[1758212877083,54.33421625,248.54,248.53,0.03]
[1758212878090,6.71685116,248.54,248.53,0.03]
[1758212878290,37.02094516,248.54,248.53,0.03]
[1758212878471,39.7142991,248.54,248.53,0.03]
[1758212879287,8.3942991,248.54,248.53,0.03]
[1758212879481,39.7142991,248.54,248.53,0.03]
[1758212880097,40.4342991,248.54,248.53,0.03]
[1758212880297,39.7142991,248.54,248.53,0.03]
[1758212880502,8.3942991,248.54,248.53,0.03]
[1758212880687,39.7142991,248.54,248.53,0.03]
[1758212881377,40.4342991,248.54,248.53,0.03]
[1758212882105,38.03685116,248.54,248.53,0.03]
[1758212882401,39.7142991,248.54,248.53,0.03]
[1758212882582,40.4242991,248.54,248.53,0.03]
[1758212882902,39.7142991,248.54,248.53,0.03]
[1758212885397,8.3942991,248.54,248.53,0.03]
[1758212885701,39.7142991,248.54,248.53,0.03]
[1758212885876,40.4242991,248.54,248.53,0.03]
[1758212886417,6.71685116,248.54,248.53,0.69]
[1758212886588,0.06,248.55,248.53,0.69]
[1758212886589,28.75335394,248.55,248.53,0.69]
[1758212886907,31.38,248.55,248.54,0.66]
[1758212887090,34.07743557,248.55,248.54,0.66]
[1758212887681,2.75743557,248.55,248.54,0.66]
[1758212888006,31.38,248.55,248.54,0.66]
[1758212890499,31.38,248.55,248.53,0.03]
[1758212890913,0.06,248.55,248.53,0.69]
[1758212891105,31.38,248.55,248.53,0.69]
[1758212891817,31.38,248.55,248.54,0.66]
[1758212892122,31.38,248.55,248.53,0.03]
[1758212892485,31.38,248.55,248.53,0.69]
[1758212893500,31.38,248.55,248.53,0.03]
[1758212893812,31.38,248.55,248.54,0.66]
[1758212894111,34.08218398,248.55,248.54,0.66]
[1758212895701,34.08218398,248.55,248.53,0.03]
[1758212896017,31.38,248.55,248.53,0.69]
[1758212898398,31.38,248.55,248.53,4.71364904]
[1758212900905,0.06,248.55,248.53,4.71364904]
[1758212902033,0.06,248.55,248.53,4.05364904]
[1758212902223,0.06,248.55,248.54,0.66]
[1758212902531,0.06,248.55,248.54,28.67262327]
[1758212903103,1e-08,248.55,248.54,28.67262327]
[1758212904419,1e-08,248.55,248.54,32.69612049]
[1758212907027,1e-08,248.55,248.54,63.99612049]
[1758212908018,1e-08,248.55,248.54,143.69612049]
[1758212908325,1e-08,248.55,248.54,157.17368792]
[1758212909824,0.06,248.58,248.57,26.0]
[1758212910012,0.06,248.58,248.57,26.40230116]
[1758212910324,0.06,248.58,248.57,27.06230116]
[1758212910520,0.06,248.58,248.57,28.67205627]
[1758212911018,0.06,248.58,248.57,32.69506789]
[1758212914013,0.06,248.58,248.57,112.39506789]
[1758212914207,0.06,248.58,248.57,111.99276673]
[1758212914522,0.06,248.58,248.57,143.27276673]
[1758212917111,0.06,248.58,248.57,111.33276673]
[1758212917306,0.06,248.58,248.57,31.63276673]
[1758212923109,0.77,248.58,248.57,31.63276673]
[1758212923706,0.77,248.58,248.57,5.63276673]
[1758212923911,0.77,248.58,248.55,4.02319189]
[1758212924123,0.71,248.57,248.55,4.02319189]
[1758212924325,0.71,248.56,248.55,4.02319189]
[1758212928726,0.77,248.58,248.55,4.02319189]
[1758212928943,0.71,248.57,248.55,4.02319189]
[1758212929107,0.06,248.58,248.55,4.02319189]